[Event "*** Titled Tuesday Blitz"]
[Site "Chess.com"]
[Date "2020.11.24"]
[Round "6"]
[White "kanzaww"]
[Black "Iskusnyh"]
[Result "0-1"]
[WhiteElo "2462"]
[BlackElo "2591"]
[TimeControl "180+1"]
[EndTime "11:21:53 PST"]
[Termination "Iskusnyh won on time"]

1. e4 {[%clk 0:03:00.9]} 1... e6 {[%clk 0:02:58.9]} 2. d4 {[%clk 0:02:59.8]}
2... d5 {[%clk 0:02:59.4]} 3. Nc3 {[%clk 0:03:00.4]} 3... Nf6 {[%clk 0:02:58.3]}
4. e5 {[%clk 0:03:00]} 4... Nfd7 {[%clk 0:02:57.5]} 5. f4 {[%clk 0:03:00.5]}
5... c5 {[%clk 0:02:58]} 6. Nf3 {[%clk 0:03:00.9]} 6... Nc6 {[%clk 0:02:58.5]}
7. Be3 {[%clk 0:03:01.3]} 7... Rb8 {[%clk 0:02:58.5]} 8. Qd2 {[%clk 0:02:54.3]}
8... Qa5 {[%clk 0:02:58.7]} 9. Be2 {[%clk 0:02:41.5]} 9... b5 {[%clk 0:02:56.9]}
10. O-O {[%clk 0:02:41.1]} 10... b4 {[%clk 0:02:56.1]} 11. Nd1 {[%clk 0:02:41]}
11... cxd4 {[%clk 0:02:55.6]} 12. Nxd4 {[%clk 0:02:40.7]} 12... Nxd4 {[%clk
0:02:55.4]} 13. Bxd4 {[%clk 0:02:40.4]} 13... Bc5 {[%clk 0:02:56]} 14. Kh1
{[%clk 0:02:24]} 14... Ba6 {[%clk 0:02:47.9]} 15. Bxa6 {[%clk 0:02:13.4]} 15...
Qxa6 {[%clk 0:02:46.7]} 16. Ne3 {[%clk 0:02:14.1]} 16... Qb6 {[%clk 0:02:19]}
17. Bxc5 {[%clk 0:02:04.5]} 17... Nxc5 {[%clk 0:02:18.1]} 18. f5 {[%clk
0:02:02.6]} 18... Ne4 {[%clk 0:02:17.5]} 19. Qe2 {[%clk 0:01:57.2]} 19... O-O
{[%clk 0:02:07.5]} 20. f6 {[%clk 0:01:52.6]} 20... gxf6 {[%clk 0:02:01.9]} 21.
exf6 {[%clk 0:01:47.4]} 21... Kh8 {[%clk 0:02:01]} 22. Ng4 {[%clk 0:01:44.6]}
22... Qd4 {[%clk 0:01:41.2]} 23. Rad1 {[%clk 0:01:14.1]} 23... Qxb2 {[%clk
0:01:33.4]} 24. Rd3 {[%clk 0:01:13.7]} 24... Rbc8 {[%clk 0:01:13.3]} 25. Qe3
{[%clk 0:01:04.9]} 25... Qxc2 {[%clk 0:00:58.9]} 26. Qh6 {[%clk 0:01:00.6]}
26... Rg8 {[%clk 0:00:58.2]} 27. Rh3 {[%clk 0:00:53.4]} 27... Ng5 {[%clk
0:00:50.3]} 28. Ne5 {[%clk 0:00:43]} 28... Qf5 {[%clk 0:00:40.7]} 29. Nxf7+
{[%clk 0:00:02.4]} 29... Nxf7 {[%clk 0:00:37.9]} 0-1

[Event "*** Titled Tuesday Blitz"]
[Site "Chess.com"]
[Date "2020.11.24"]
[Round "6"]
[White "TigrVShlyape"]
[Black "Beca95"]
[Result "1/2-1/2"]
[WhiteElo "2823"]
[BlackElo "2925"]
[TimeControl "180+1"]
[EndTime "11:21:56 PST"]
[Termination "Game drawn by repetition"]

1. d4 {[%clk 0:03:00.9]} 1... Nf6 {[%clk 0:02:58.4]} 2. Nf3 {[%clk 0:03:00.7]}
2... d6 {[%clk 0:02:58.8]} 3. Bf4 {[%clk 0:02:58.6]} 3... g6 {[%clk 0:02:55.5]}
4. h3 {[%clk 0:02:56.9]} 4... Bg7 {[%clk 0:02:54.8]} 5. c3 {[%clk 0:02:57.2]}
5... O-O {[%clk 0:02:54.7]} 6. Nbd2 {[%clk 0:02:57.1]} 6... c5 {[%clk
0:02:49.6]} 7. dxc5 {[%clk 0:02:56.6]} 7... dxc5 {[%clk 0:02:49.9]} 8. e4 {[%clk
0:02:57]} 8... Nc6 {[%clk 0:02:48.8]} 9. Be2 {[%clk 0:02:57.2]} 9... Nh5 {[%clk
0:02:46.6]} 10. Bh2 {[%clk 0:02:54.9]} 10... e5 {[%clk 0:02:37.7]} 11. O-O
{[%clk 0:02:50.2]} 11... Nf4 {[%clk 0:02:36.1]} 12. Bc4 {[%clk 0:02:48.6]} 12...
Na5 {[%clk 0:02:25.9]} 13. Bxf4 {[%clk 0:02:47.3]} 13... Nxc4 {[%clk 0:02:25]}
14. Bg5 {[%clk 0:02:46]} 14... Qd3 {[%clk 0:02:21.5]} 15. Be7 {[%clk 0:02:16.4]}
15... Nxd2 {[%clk 0:02:12]} 16. Qxd2 {[%clk 0:02:11.9]} 16... Qxd2 {[%clk
0:02:05.8]} 17. Nxd2 {[%clk 0:02:11.8]} 17... Re8 {[%clk 0:02:06.2]} 18. Bxc5
{[%clk 0:02:11.7]} 18... b6 {[%clk 0:02:06.5]} 19. Be3 {[%clk 0:02:11.2]} 19...
Ba6 {[%clk 0:02:05.3]} 20. Rfd1 {[%clk 0:02:06.4]} 20... Bd3 {[%clk 0:02:04.5]}
21. f3 {[%clk 0:02:04.7]} 21... f5 {[%clk 0:02:04.7]} 22. exf5 {[%clk
0:01:58.5]} 22... gxf5 {[%clk 0:02:04.5]} 23. Nf1 {[%clk 0:01:50.7]} 23... e4
{[%clk 0:02:04.2]} 24. fxe4 {[%clk 0:01:43.6]} 24... fxe4 {[%clk 0:02:03.4]} 25.
Ng3 {[%clk 0:01:41.7]} 25... Be5 {[%clk 0:02:01.4]} 26. Nf5 {[%clk 0:01:39.8]}
26... h5 {[%clk 0:01:58.1]} 27. Rd2 {[%clk 0:01:35.8]} 27... Kh7 {[%clk
0:01:54]} 28. Rf2 {[%clk 0:01:32.3]} 28... Rf8 {[%clk 0:01:52]} 29. Bd4 {[%clk
0:01:27.6]} 29... e3 {[%clk 0:01:37.3]} 30. Rf3 {[%clk 0:01:12.3]} 30... Rxf5
{[%clk 0:01:07.4]} 31. Rxf5 {[%clk 0:01:09.3]} 31... Bxf5 {[%clk 0:01:07.5]} 32.
Bxe5 {[%clk 0:01:09.2]} 32... e2 {[%clk 0:01:07.8]} 33. Kf2 {[%clk 0:01:06.9]}
33... Re8 {[%clk 0:01:07.5]} 34. Bd4 {[%clk 0:01:03.8]} 34... Bd3 {[%clk
0:01:04.6]} 35. Re1 {[%clk 0:01:03]} 35... Kg6 {[%clk 0:01:03.4]} 36. g4 {[%clk
0:01:02.1]} 36... hxg4 {[%clk 0:00:58.8]} 37. hxg4 {[%clk 0:01:01.8]} 37... Re4
{[%clk 0:00:58.1]} 38. Kf3 {[%clk 0:01:01]} 38... Re6 {[%clk 0:00:56.4]} 39. Be3
{[%clk 0:00:57.2]} 39... a5 {[%clk 0:00:53.6]} 40. b3 {[%clk 0:00:55.3]} 40...
b5 {[%clk 0:00:53.4]} 41. Bd2 {[%clk 0:00:52.5]} 41... a4 {[%clk 0:00:52.9]} 42.
bxa4 {[%clk 0:00:49.9]} 42... bxa4 {[%clk 0:00:53.8]} 43. a3 {[%clk 0:00:50]}
43... Bc4 {[%clk 0:00:49.8]} 44. Be3 {[%clk 0:00:48.7]} 44... Bd3 {[%clk
0:00:47.8]} 45. Bd4 {[%clk 0:00:47.9]} 45... Bc4 {[%clk 0:00:46.8]} 46. Kf4
{[%clk 0:00:46.2]} 46... Bd3 {[%clk 0:00:39.5]} 47. Kf3 {[%clk 0:00:44.6]} 47...
Bc4 {[%clk 0:00:39.1]} 48. Kf4 {[%clk 0:00:43.5]} 48... Bd3 {[%clk 0:00:39.2]}
49. Kf3 {[%clk 0:00:42.9]} 1/2-1/2

[Event "*** Titled Tuesday Blitz"]
[Site "Chess.com"]
[Date "2020.11.24"]
[Round "6"]
[White "Vladislav_Chizhikov"]
[Black "Caisachess"]
[Result "1-0"]
[WhiteElo "2527"]
[BlackElo "2385"]
[TimeControl "180+1"]
[EndTime "11:21:59 PST"]
[Termination "Vladislav_Chizhikov won by resignation"]

1. e4 {[%clk 0:03:00.9]} 1... e5 {[%clk 0:02:02.9]} 2. Nf3 {[%clk 0:02:51.6]}
2... Nc6 {[%clk 0:02:02.4]} 3. Bb5 {[%clk 0:02:50.5]} 3... f5 {[%clk 0:02:02]}
4. d3 {[%clk 0:02:45.7]} 4... fxe4 {[%clk 0:02:01.7]} 5. dxe4 {[%clk 0:02:45.8]}
5... Nf6 {[%clk 0:02:02.4]} 6. Qd3 {[%clk 0:02:41.9]} 6... Bb4+ {[%clk
0:02:01.8]} 7. c3 {[%clk 0:02:40]} 7... Bc5 {[%clk 0:02:02]} 8. O-O {[%clk
0:02:39.8]} 8... d6 {[%clk 0:02:02.2]} 9. Bc4 {[%clk 0:02:35.5]} 9... Bg4 {[%clk
0:01:59]} 10. Be3 {[%clk 0:02:30.1]} 10... Bb6 {[%clk 0:01:58.2]} 11. Nbd2
{[%clk 0:02:28.3]} 11... Qe7 {[%clk 0:01:56.5]} 12. b4 {[%clk 0:02:27]} 12...
Nd8 {[%clk 0:01:55.3]} 13. a4 {[%clk 0:02:26.5]} 13... Ne6 {[%clk 0:01:51.2]}
14. a5 {[%clk 0:02:24.4]} 14... Bxe3 {[%clk 0:01:50.6]} 15. fxe3 {[%clk
0:02:24.6]} 15... O-O {[%clk 0:01:47.9]} 16. h3 {[%clk 0:02:22.9]} 16... Bxf3
{[%clk 0:01:47.1]} 17. gxf3 {[%clk 0:02:20.7]} 17... Kh8 {[%clk 0:01:44.7]} 18.
Kh2 {[%clk 0:02:21.1]} 18... Rae8 {[%clk 0:01:35.6]} 19. a6 {[%clk 0:02:18.6]}
19... b6 {[%clk 0:01:33.3]} 20. Rg1 {[%clk 0:02:18.7]} 20... h6 {[%clk
0:01:28.6]} 21. Rg6 {[%clk 0:02:16.3]} 21... Ng5 {[%clk 0:01:28.2]} 22. h4
{[%clk 0:02:07.4]} 22... Ne6 {[%clk 0:01:09.3]} 23. Rag1 {[%clk 0:01:45.9]}
23... Rf7 {[%clk 0:01:05.5]} 24. Qf1 {[%clk 0:01:37.9]} 24... c6 {[%clk
0:01:03.7]} 25. Qh3 {[%clk 0:01:37.3]} 25... d5 {[%clk 0:01:03.5]} 26. exd5
{[%clk 0:01:37.3]} 26... cxd5 {[%clk 0:01:03.3]} 27. Bb5 {[%clk 0:01:30.5]}
27... Rc8 {[%clk 0:00:51.6]} 28. c4 {[%clk 0:01:30.4]} 28... d4 {[%clk
0:00:41.6]} 29. Ne4 {[%clk 0:01:25.9]} 29... Nxe4 {[%clk 0:00:39.9]} 30. Rxe6
{[%clk 0:01:24.6]} 30... Qxb4 {[%clk 0:00:31.8]} 31. Rxh6+ {[%clk 0:01:23.8]}
31... gxh6 {[%clk 0:00:29.1]} 32. Qxc8+ {[%clk 0:01:24]} 32... Rf8 {[%clk
0:00:28.6]} 33. Qe6 {[%clk 0:01:17.4]} 33... Qd2+ {[%clk 0:00:21.2]} 34. Rg2
{[%clk 0:01:16.5]} 34... Qxe3 {[%clk 0:00:18.5]} 35. Qxe5+ {[%clk 0:01:16.8]}
35... Nf6 {[%clk 0:00:15.4]} 36. Qxe3 {[%clk 0:01:07.9]} 36... dxe3 {[%clk
0:00:16.3]} 37. Re2 {[%clk 0:01:08.1]} 37... Rd8 {[%clk 0:00:03]} 38. Rxe3
{[%clk 0:01:07.9]} 38... Rd2+ {[%clk 0:00:03.5]} 39. Kh3 {[%clk 0:01:07.7]}
39... Kg7 {[%clk 0:00:04.4]} 40. Re7+ {[%clk 0:01:07.2]} 40... Kg6 {[%clk
0:00:04.9]} 41. Rxa7 {[%clk 0:01:07.6]} 41... Nh5 {[%clk 0:00:04.8]} 42. Be8+
{[%clk 0:01:07.4]} 1-0

[Event "*** Titled Tuesday Blitz"]
[Site "Chess.com"]
[Date "2020.11.24"]
[Round "6"]
[White "sbouchet"]
[Black "Eternauta2400"]
[Result "1-0"]
[WhiteElo "2328"]
[BlackElo "2429"]
[TimeControl "180+1"]
[EndTime "11:21:59 PST"]
[Termination "sbouchet won on time"]

1. e4 {[%clk 0:03:00.9]} 1... c5 {[%clk 0:02:55.3]} 2. c4 {[%clk 0:03:00.6]}
2... Nc6 {[%clk 0:02:53.9]} 3. Nc3 {[%clk 0:03:00.6]} 3... e6 {[%clk 0:02:51.7]}
4. g3 {[%clk 0:03:00.6]} 4... Nf6 {[%clk 0:02:52.3]} 5. Bg2 {[%clk 0:03:00.5]}
5... d5 {[%clk 0:02:52.9]} 6. cxd5 {[%clk 0:02:59.9]} 6... exd5 {[%clk
0:02:53.8]} 7. exd5 {[%clk 0:02:58.8]} 7... Nb4 {[%clk 0:02:53.3]} 8. Nge2
{[%clk 0:02:19.8]} 8... Nbxd5 {[%clk 0:02:45.1]} 9. O-O {[%clk 0:02:17.8]} 9...
Be6 {[%clk 0:02:43.4]} 10. d4 {[%clk 0:02:13.9]} 10... Nxc3 {[%clk 0:02:41.2]}
11. bxc3 {[%clk 0:02:11.7]} 11... Qd7 {[%clk 0:02:24.4]} 12. Nf4 {[%clk
0:02:04.6]} 12... Bc4 {[%clk 0:02:17.6]} 13. Re1+ {[%clk 0:02:01.7]} 13... Be7
{[%clk 0:02:17.5]} 14. Be3 {[%clk 0:01:42.9]} 14... O-O {[%clk 0:01:59.9]} 15.
dxc5 {[%clk 0:01:40.5]} 15... Qc7 {[%clk 0:01:33.4]} 16. Qa4 {[%clk 0:01:09.7]}
16... Ba6 {[%clk 0:01:22.4]} 17. Bd4 {[%clk 0:01:09.6]} 17... Bxc5 {[%clk
0:00:55.7]} 18. Bxf6 {[%clk 0:01:07.7]} 18... gxf6 {[%clk 0:00:56.6]} 19. Nd5
{[%clk 0:01:06.2]} 19... Qd6 {[%clk 0:00:56.4]} 20. Rad1 {[%clk 0:01:01]} 20...
Kh8 {[%clk 0:00:42.7]} 21. Qh4 {[%clk 0:00:53.9]} 21... Rae8 {[%clk 0:00:38]}
22. Nxf6 {[%clk 0:00:48.1]} 22... Rxe1+ {[%clk 0:00:36.7]} 23. Rxe1 {[%clk
0:00:48.6]} 23... Bd3 {[%clk 0:00:04]} 24. Be4 {[%clk 0:00:33]} 24... Bxe4
{[%clk 0:00:04.2]} 25. Rxe4 {[%clk 0:00:31.7]} 25... Qd1+ {[%clk 0:00:01.1]} 26.
Kg2 {[%clk 0:00:30.6]} 26... h5 {[%clk 0:00:01.1]} 27. Qg5 {[%clk 0:00:22.9]}
1-0

[Event "*** Titled Tuesday Blitz"]
[Site "Chess.com"]
[Date "2020.11.24"]
[Round "6"]
[White "SchmakAttack"]
[Black "petrpalachev"]
[Result "0-1"]
[WhiteElo "2504"]
[BlackElo "2724"]
[TimeControl "180+1"]
[EndTime "11:22:02 PST"]
[Termination "petrpalachev won on time"]

1. e4 {[%clk 0:03:00.9]} 1... d6 {[%clk 0:03:00]} 2. d4 {[%clk 0:03:00.3]} 2...
Nf6 {[%clk 0:03:00.9]} 3. Nc3 {[%clk 0:03:00.8]} 3... e5 {[%clk 0:03:01.3]} 4.
Nf3 {[%clk 0:03:00.6]} 4... Nbd7 {[%clk 0:03:00]} 5. Bc4 {[%clk 0:03:00.4]} 5...
Be7 {[%clk 0:03:00.7]} 6. a4 {[%clk 0:03:00.3]} 6... O-O {[%clk 0:03:01.1]} 7.
O-O {[%clk 0:03:00.9]} 7... c6 {[%clk 0:02:59.8]} 8. Re1 {[%clk 0:03:01.2]} 8...
exd4 {[%clk 0:02:56.9]} 9. Qxd4 {[%clk 0:03:00.8]} 9... Nc5 {[%clk 0:02:57.8]}
10. h3 {[%clk 0:02:41.7]} 10... Be6 {[%clk 0:02:53.1]} 11. Be3 {[%clk
0:02:38.6]} 11... Re8 {[%clk 0:02:46.8]} 12. Rad1 {[%clk 0:02:29.3]} 12... Bf8
{[%clk 0:02:47.2]} 13. Bf1 {[%clk 0:02:17.3]} 13... d5 {[%clk 0:02:38.2]} 14.
exd5 {[%clk 0:01:51.1]} 14... Nxd5 {[%clk 0:02:39.1]} 15. Bg5 {[%clk 0:01:44.5]}
15... Qc7 {[%clk 0:02:34.6]} 16. Bh4 {[%clk 0:01:23]} 16... Nxc3 {[%clk
0:02:07]} 17. Qxc3 {[%clk 0:01:23.9]} 17... Bd5 {[%clk 0:02:07.9]} 18. Bg3
{[%clk 0:01:01.4]} 18... Qb6 {[%clk 0:02:05.8]} 19. a5 {[%clk 0:01:00.7]} 19...
Rxe1 {[%clk 0:01:53.8]} 20. Rxe1 {[%clk 0:00:47.7]} 20... Qd8 {[%clk 0:01:53.4]}
21. Nd2 {[%clk 0:00:46]} 21... b5 {[%clk 0:01:32.6]} 22. Be5 {[%clk 0:00:21.3]}
22... Ne6 {[%clk 0:01:30.3]} 23. Nb3 {[%clk 0:00:16.5]} 23... f6 {[%clk
0:01:23.4]} 24. Bg3 {[%clk 0:00:15.7]} 24... Qd7 {[%clk 0:01:20.9]} 25. Nd4
{[%clk 0:00:13]} 25... Nxd4 {[%clk 0:01:16.6]} 26. Qxd4 {[%clk 0:00:13.9]} 26...
Rd8 {[%clk 0:01:17.1]} 27. c3 {[%clk 0:00:14.2]} 27... Bb3 {[%clk 0:01:12.2]}
28. Qxd7 {[%clk 0:00:09.9]} 28... Rxd7 {[%clk 0:01:13.1]} 29. a6 {[%clk
0:00:10.5]} 29... Kf7 {[%clk 0:01:08.7]} 30. Be2 {[%clk 0:00:10.7]} 30... Bd6
{[%clk 0:00:53.1]} 31. Bg4 {[%clk 0:00:08.6]} 31... Rd8 {[%clk 0:00:51.7]} 32.
Bxd6 {[%clk 0:00:04.4]} 32... Rxd6 {[%clk 0:00:52.6]} 33. Bc8 {[%clk 0:00:02.4]}
33... Rd2 {[%clk 0:00:50.4]} 34. Bb7 {[%clk 0:00:02.2]} 34... c5 {[%clk
0:00:50.1]} 35. Re3 {[%clk 0:00:01.4]} 35... Rxb2 {[%clk 0:00:45.6]} 36. Bc6
{[%clk 0:00:02.1]} 36... b4 {[%clk 0:00:45.2]} 37. cxb4 {[%clk 0:00:01.6]} 37...
c4 {[%clk 0:00:45.4]} 0-1

[Event "*** Titled Tuesday Blitz"]
[Site "Chess.com"]
[Date "2020.11.24"]
[Round "6"]
[White "HouseOfDurin"]
[Black "Vulcanochess"]
[Result "0-1"]
[WhiteElo "2127"]
[BlackElo "2331"]
[TimeControl "180+1"]
[EndTime "11:22:06 PST"]
[Termination "Vulcanochess won on time"]

1. d4 {[%clk 0:03:00.9]} 1... c5 {[%clk 0:02:59.8]} 2. d5 {[%clk 0:02:58.3]}
2... Nf6 {[%clk 0:02:56.7]} 3. Bg5 {[%clk 0:02:58.8]} 3... e6 {[%clk 0:02:37.2]}
4. e4 {[%clk 0:02:57.6]} 4... h6 {[%clk 0:02:35]} 5. Bxf6 {[%clk 0:02:42.1]}
5... Qxf6 {[%clk 0:02:33.9]} 6. Nc3 {[%clk 0:02:42]} 6... a6 {[%clk 0:02:25.4]}
7. Nf3 {[%clk 0:02:38.4]} 7... d6 {[%clk 0:02:20.2]} 8. dxe6 {[%clk 0:02:12.8]}
8... Bxe6 {[%clk 0:02:15.2]} 9. Nd5 {[%clk 0:01:46.6]} 9... Bxd5 {[%clk
0:02:12.8]} 10. Qxd5 {[%clk 0:01:44.5]} 10... Qxb2 {[%clk 0:02:09.2]} 11. Rd1
{[%clk 0:01:42]} 11... Qb4+ {[%clk 0:01:44.3]} 12. c3 {[%clk 0:01:38]} 12...
Qxc3+ {[%clk 0:01:41.9]} 13. Nd2 {[%clk 0:01:38.6]} 13... Nc6 {[%clk 0:01:36.5]}
14. Bc4 {[%clk 0:01:34.9]} 14... Qf6 {[%clk 0:01:34.8]} 15. O-O {[%clk 0:01:27]}
15... Be7 {[%clk 0:01:33.3]} 16. e5 {[%clk 0:01:14.9]} 16... dxe5 {[%clk
0:00:56.7]} 17. Ne4 {[%clk 0:01:13.6]} 17... Qg6 {[%clk 0:00:56.5]} 18. Nxc5
{[%clk 0:01:07.2]} 18... O-O {[%clk 0:00:47.2]} 19. Nxb7 {[%clk 0:00:58.5]}
19... Rfb8 {[%clk 0:00:40]} 20. Qd7 {[%clk 0:00:24.6]} 20... Ra7 {[%clk
0:00:24.1]} 21. Rb1 {[%clk 0:00:18.5]} 21... Nb4 {[%clk 0:00:07.1]} 22. Qxe7
{[%clk 0:00:07.5]} 22... Raxb7 {[%clk 0:00:07.5]} 0-1

[Event "*** Titled Tuesday Blitz"]
[Site "Chess.com"]
[Date "2020.11.24"]
[Round "6"]
[White "ViktoriyaTarasova"]
[Black "Orest_Vovk"]
[Result "0-1"]
[WhiteElo "2295"]
[BlackElo "2537"]
[TimeControl "180+1"]
[EndTime "11:22:07 PST"]
[Termination "Orest_Vovk won on time"]

1. d4 {[%clk 0:02:59.1]} 1... e5 {[%clk 0:02:58.9]} 2. dxe5 {[%clk 0:02:58.4]}
2... Nc6 {[%clk 0:02:59]} 3. e3 {[%clk 0:02:50.5]} 3... Nxe5 {[%clk 0:02:58.5]}
4. f4 {[%clk 0:02:50.3]} 4... Nc6 {[%clk 0:02:57.8]} 5. c4 {[%clk 0:02:43.9]}
5... Nf6 {[%clk 0:02:56.1]} 6. Nc3 {[%clk 0:02:42.9]} 6... Bb4 {[%clk
0:02:55.1]} 7. Ne2 {[%clk 0:02:37.4]} 7... O-O {[%clk 0:02:53.8]} 8. a3 {[%clk
0:02:30.6]} 8... Be7 {[%clk 0:02:48]} 9. e4 {[%clk 0:02:21.5]} 9... a6 {[%clk
0:02:12.4]} 10. g3 {[%clk 0:02:12.2]} 10... Bc5 {[%clk 0:02:11.2]} 11. h3 {[%clk
0:02:03.8]} 11... d6 {[%clk 0:02:06.1]} 12. Bg2 {[%clk 0:01:59.7]} 12... Re8
{[%clk 0:01:56.4]} 13. Qd3 {[%clk 0:01:47.7]} 13... Be6 {[%clk 0:01:39.5]} 14.
b3 {[%clk 0:01:42.3]} 14... Ba7 {[%clk 0:01:25.1]} 15. Be3 {[%clk 0:01:31.9]}
15... Bxe3 {[%clk 0:01:23.2]} 16. Qxe3 {[%clk 0:01:32.2]} 16... b5 {[%clk
0:01:13.8]} 17. Qd3 {[%clk 0:01:00.7]} 17... bxc4 {[%clk 0:01:06.2]} 18. bxc4
{[%clk 0:01:00.6]} 18... Nd7 {[%clk 0:01:04.4]} 19. e5 {[%clk 0:00:23.7]} 19...
Nc5 {[%clk 0:00:56]} 20. Qf3 {[%clk 0:00:14.9]} 20... Bd7 {[%clk 0:00:55.4]} 21.
exd6 {[%clk 0:00:12.7]} 21... cxd6 {[%clk 0:00:55.2]} 22. O-O {[%clk 0:00:12.6]}
22... Rb8 {[%clk 0:00:47.5]} 23. Rfd1 {[%clk 0:00:12.2]} 23... Na5 {[%clk
0:00:27.7]} 24. Rxd6 {[%clk 0:00:10.4]} 24... Nxc4 {[%clk 0:00:26]} 25. Rdd1
{[%clk 0:00:09.9]} 25... Ne3 {[%clk 0:00:23.2]} 26. Rd6 {[%clk 0:00:02.1]} 26...
Nxg2 {[%clk 0:00:22.2]} 27. Kxg2 {[%clk 0:00:01.2]} 27... Rb2 {[%clk 0:00:21]}
0-1

[Event "*** Titled Tuesday Blitz"]
[Site "Chess.com"]
[Date "2020.11.24"]
[Round "6"]
[White "guillembaches"]
[Black "FMOlexandrProhorov"]
[Result "1-0"]
[WhiteElo "2398"]
[BlackElo "2187"]
[TimeControl "180+1"]
[EndTime "11:22:08 PST"]
[Termination "guillembaches won on time"]

1. e4 {[%clk 0:03:00.9]} 1... c5 {[%clk 0:02:57.1]} 2. Nf3 {[%clk 0:03:01.2]}
2... e6 {[%clk 0:02:56.5]} 3. c4 {[%clk 0:03:00.8]} 3... Nc6 {[%clk 0:02:52.2]}
4. Nc3 {[%clk 0:03:00.6]} 4... a6 {[%clk 0:02:50.1]} 5. d4 {[%clk 0:03:00]} 5...
cxd4 {[%clk 0:02:50.1]} 6. Nxd4 {[%clk 0:03:00.2]} 6... Nf6 {[%clk 0:02:50.3]}
7. Nxc6 {[%clk 0:02:57.4]} 7... dxc6 {[%clk 0:02:36.4]} 8. Qxd8+ {[%clk
0:02:53.1]} 8... Kxd8 {[%clk 0:02:37.3]} 9. e5 {[%clk 0:02:44.7]} 9... Nd7
{[%clk 0:02:35.1]} 10. Bf4 {[%clk 0:02:38.8]} 10... Kc7 {[%clk 0:02:26.5]} 11.
O-O-O {[%clk 0:02:35.6]} 11... b5 {[%clk 0:01:54.5]} 12. Ne4 {[%clk 0:02:29.3]}
12... Nb6 {[%clk 0:01:39]} 13. Nd6 {[%clk 0:02:22.9]} 13... Bxd6 {[%clk
0:01:33]} 14. Rxd6 {[%clk 0:02:10.8]} 14... Bb7 {[%clk 0:01:22.8]} 15. Be2
{[%clk 0:01:59]} 15... Rad8 {[%clk 0:01:17.8]} 16. Rhd1 {[%clk 0:01:53.1]} 16...
Rxd6 {[%clk 0:01:05.9]} 17. exd6+ {[%clk 0:01:50]} 17... Kd7 {[%clk 0:01:03.8]}
18. c5 {[%clk 0:01:44]} 18... Nd5 {[%clk 0:01:03.4]} 19. Bd2 {[%clk 0:01:39.3]}
19... f6 {[%clk 0:00:50.7]} 20. Bg4 {[%clk 0:01:32.5]} 20... h5 {[%clk
0:00:45.5]} 21. Bh3 {[%clk 0:01:30.4]} 21... g5 {[%clk 0:00:44.4]} 22. g3 {[%clk
0:01:29.9]} 22... g4 {[%clk 0:00:35.3]} 23. Bg2 {[%clk 0:01:29.3]} 23... h4
{[%clk 0:00:19.6]} 24. Be4 {[%clk 0:01:11.6]} 24... hxg3 {[%clk 0:00:19.3]} 25.
hxg3 {[%clk 0:01:11.4]} 25... Rh2 {[%clk 0:00:19.2]} 26. Bxd5 {[%clk 0:01:06.6]}
26... cxd5 {[%clk 0:00:17.1]} 27. Be3 {[%clk 0:01:06.1]} 27... e5 {[%clk
0:00:16.1]} 28. Bd2 {[%clk 0:00:52.6]} 28... Rxf2 {[%clk 0:00:15.2]} 29. Rh1
{[%clk 0:00:52.6]} 29... Kc6 {[%clk 0:00:12.1]} 30. b4 {[%clk 0:00:51.7]} 30...
d4 {[%clk 0:00:07.7]} 31. Rh7 {[%clk 0:00:51.5]} 31... e4 {[%clk 0:00:03.6]} 32.
Rc7+ {[%clk 0:00:51]} 32... Kd5 {[%clk 0:00:03.2]} 33. d7 {[%clk 0:00:50.6]}
33... Kc4 {[%clk 0:00:03.4]} 34. d8=Q {[%clk 0:00:46.1]} 34... e3 {[%clk
0:00:01.7]} 35. Bxe3 {[%clk 0:00:33]} 1-0

[Event "*** Titled Tuesday Blitz"]
[Site "Chess.com"]
[Date "2020.11.24"]
[Round "6"]
[White "CakeinSpace2002"]
[Black "Marina_Chess_Rus"]
[Result "1-0"]
[WhiteElo "2393"]
[BlackElo "2285"]
[TimeControl "180+1"]
[EndTime "11:22:09 PST"]
[Termination "CakeinSpace2002 won by checkmate"]

1. c4 {[%clk 0:02:59]} 1... e5 {[%clk 0:02:59]} 2. Nc3 {[%clk 0:02:58.6]} 2...
Nf6 {[%clk 0:02:58.7]} 3. g3 {[%clk 0:02:58.8]} 3... d5 {[%clk 0:02:58.3]} 4.
cxd5 {[%clk 0:02:58.7]} 4... Nxd5 {[%clk 0:02:58.3]} 5. Bg2 {[%clk 0:02:59.6]}
5... Nb6 {[%clk 0:02:53.7]} 6. Nf3 {[%clk 0:02:59.3]} 6... Nc6 {[%clk
0:02:52.3]} 7. O-O {[%clk 0:02:59.4]} 7... Be7 {[%clk 0:02:52.3]} 8. d3 {[%clk
0:02:59.2]} 8... O-O {[%clk 0:02:49.9]} 9. Be3 {[%clk 0:03:00.1]} 9... Be6
{[%clk 0:02:48]} 10. a3 {[%clk 0:02:59.2]} 10... f6 {[%clk 0:02:30.1]} 11. b4
{[%clk 0:02:58.6]} 11... Nd5 {[%clk 0:02:24.3]} 12. Nxd5 {[%clk 0:02:56.3]}
12... Bxd5 {[%clk 0:02:23.8]} 13. Nd2 {[%clk 0:02:57.2]} 13... Bxg2 {[%clk
0:02:22.8]} 14. Kxg2 {[%clk 0:02:58.1]} 14... Qd5+ {[%clk 0:02:19.9]} 15. f3
{[%clk 0:02:58]} 15... Nd4 {[%clk 0:02:13.5]} 16. Bxd4 {[%clk 0:02:56]} 16...
exd4 {[%clk 0:02:06.9]} 17. Qb3 {[%clk 0:02:55.8]} 17... Rad8 {[%clk 0:01:59.8]}
18. Rac1 {[%clk 0:02:49.9]} 18... c6 {[%clk 0:01:57.5]} 19. Rc4 {[%clk
0:02:39.9]} 19... Kh8 {[%clk 0:01:53.7]} 20. Rc2 {[%clk 0:02:30.6]} 20... f5
{[%clk 0:01:38.7]} 21. Qxd5 {[%clk 0:02:26]} 21... Rxd5 {[%clk 0:01:38.4]} 22.
h3 {[%clk 0:02:20.5]} 22... a5 {[%clk 0:01:28.8]} 23. bxa5 {[%clk 0:02:14.8]}
23... Rxa5 {[%clk 0:01:23.1]} 24. Rb1 {[%clk 0:02:09.9]} 24... Bxa3 {[%clk
0:01:12]} 25. Rxb7 {[%clk 0:02:08.5]} 25... Ra6 {[%clk 0:01:04]} 26. Rc7 {[%clk
0:01:59.6]} 26... c5 {[%clk 0:00:58.8]} 27. g4 {[%clk 0:01:55.2]} 27... Re6
{[%clk 0:00:53.9]} 28. Kf2 {[%clk 0:01:42]} 28... fxg4 {[%clk 0:00:52.5]} 29.
hxg4 {[%clk 0:01:42.1]} 29... Rh6 {[%clk 0:00:52.4]} 30. Ne4 {[%clk 0:01:40]}
30... Rg6 {[%clk 0:00:33.7]} 31. Kg3 {[%clk 0:01:25.9]} 31... h5 {[%clk
0:00:33.4]} 32. g5 {[%clk 0:01:17.2]} 32... Bb4 {[%clk 0:00:29.3]} 33. Ra2
{[%clk 0:01:10.5]} 33... Kh7 {[%clk 0:00:27.2]} 34. Raa7 {[%clk 0:01:10.2]}
34... Kh8 {[%clk 0:00:23.7]} 35. Kh4 {[%clk 0:01:04]} 35... Rb6 {[%clk
0:00:19.5]} 36. Rxg7 {[%clk 0:00:58.2]} 36... Rf4+ {[%clk 0:00:14.4]} 37. Kxh5
{[%clk 0:00:56.3]} 37... Rb8 {[%clk 0:00:11.1]} 38. Rh7+ {[%clk 0:00:55.4]}
38... Kg8 {[%clk 0:00:10.6]} 39. Nf6+ {[%clk 0:00:54.7]} 39... Rxf6 {[%clk
0:00:10.2]} 40. gxf6 {[%clk 0:00:55]} 40... Bd2 {[%clk 0:00:08.9]} 41. Rag7+
{[%clk 0:00:54.9]} 41... Kf8 {[%clk 0:00:08.8]} 42. Rh8# {[%clk 0:00:55.8]} 1-0